bitfinex/quotes_BTCUSD_20251117
["timestamp","ask_amount","ask_price","bid_price","bid_amount"]
[1763354118210,0.2779519,95420.0,95408.0,0.20979024]
[1763354118409,0.03196181,95409.0,95408.0,0.20979024]
[1763354119995,0.03196181,95409.0,95408.0,0.21079024]
[1763354122853,0.00044095,95409.0,95408.0,0.21079024]
[1763354125599,0.40748095,95409.0,95408.0,0.20979024]
[1763354125827,0.40748095,95409.0,95408.0,0.21079024]
[1763354126043,0.40748095,95409.0,95408.0,0.21179024]
[1763354126182,0.40748095,95409.0,95408.0,0.21079024]
[1763354126624,0.08448095,95409.0,95408.0,0.21179024]
[1763354127210,0.08448095,95409.0,95408.0,0.20979024]
[1763354127432,0.08448095,95409.0,95408.0,0.21079024]
[1763354127764,0.08448095,95409.0,95408.0,0.20979024]
[1763354128135,0.08448095,95409.0,95408.0,0.11079024]
[1763354128470,0.08448095,95409.0,95408.0,0.10979024]
[1763354128658,0.08448095,95409.0,95408.0,0.21079024]
[1763354129094,0.08448095,95409.0,95408.0,0.21179024]
[1763354129674,0.00044095,95409.0,95408.0,0.20180931]
[1763354130271,0.00044095,95409.0,95408.0,0.20080931]
[1763354130770,0.00044095,95409.0,95408.0,0.20180931]
[1763354131004,0.00044095,95409.0,95408.0,0.20080931]
[1763354131207,0.00044095,95409.0,95408.0,0.20180931]
[1763354131423,0.00044095,95409.0,95408.0,0.23199024]
[1763354132118,0.00044095,95409.0,95408.0,0.23099024]
[1763354132353,0.00044095,95409.0,95408.0,0.23199024]
[1763354134010,0.00044095,95409.0,95408.0,0.20180931]
[1763354134226,0.00044095,95409.0,95408.0,0.002]
[1763354135055,0.00044095,95409.0,95408.0,0.001]
[1763354135272,0.00044095,95409.0,95397.0,0.00022081]
[1763354135485,0.32344095,95409.0,95408.0,0.002]
[1763354135717,0.49152095,95409.0,95408.0,0.002]
[1763354135917,0.49152095,95409.0,95408.0,0.001]
[1763354136534,0.49152095,95409.0,95397.0,0.00022081]
[1763354136774,0.323,95406.0,95397.0,0.00022081]
[1763354138117,0.323,95406.0,95397.0,0.01126382]
[1763354138318,0.03152709,95405.0,95397.0,0.01126382]
[1763354139373,0.03152709,95405.0,95397.0,0.00122081]
[1763354139530,0.03152709,95405.0,95397.0,0.00022081]
[1763354139955,0.03152709,95405.0,95397.0,0.00122081]
[1763354140746,0.03152709,95405.0,95397.0,0.00022081]
[1763354140929,0.03152709,95405.0,95397.0,0.00122081]
[1763354142918,0.03152709,95405.0,95398.0,0.01010301]
[1763354143934,0.03152709,95405.0,95398.0,0.01110301]
[1763354145640,0.50753753,95404.0,95398.0,0.01110301]
[1763354145837,0.50753753,95404.0,95398.0,0.01010301]
[1763354146109,0.00044095,95409.0,95399.0,0.8981]
[1763354146348,0.03151606,95423.0,95420.0,0.24433851]
[1763354146570,0.24433851,95440.0,95410.0,0.24433851]
[1763354146571,0.01205,95420.0,95411.0,0.04341874]
[1763354146790,0.01205,95412.0,95411.0,0.04355159]
[1763354147026,0.02864,95412.0,95411.0,0.04355159]
[1763354147246,0.02864,95412.0,95411.0,0.00013285]
[1763354147467,0.02864,95412.0,95411.0,0.14355159]
[1763354147688,0.02864,95412.0,95411.0,0.24355159]
[1763354147898,0.05288,95412.0,95411.0,0.25890675]
[1763354148535,0.05288,95412.0,95411.0,0.26090675]
[1763354148951,0.05288,95412.0,95411.0,0.25990675]
[1763354149342,0.05288,95412.0,95411.0,0.26090675]
[1763354150670,0.02864,95412.0,95411.0,0.26090675]
[1763354150858,0.05288,95412.0,95411.0,0.26090675]
[1763354153148,0.05288,95412.0,95411.0,0.21748801]
[1763354154261,0.05288,95412.0,95411.0,0.21548801]
[1763354154572,0.05288,95412.0,95411.0,0.21648801]
[1763354155180,0.05288,95412.0,95411.0,0.21548801]
[1763354155429,0.05288,95412.0,95411.0,0.21648801]
[1763354155566,0.11268,95412.0,95411.0,0.21648801]
[1763354155750,0.13692,95412.0,95411.0,0.21648801]
[1763354160147,0.13692,95412.0,95411.0,0.23747801]
[1763354160377,0.05288,95412.0,95411.0,0.21648801]
[1763354161917,0.02864,95412.0,95411.0,0.21648801]
[1763354162466,0.05288,95412.0,95411.0,0.21648801]
[1763354165642,0.13692,95412.0,95411.0,0.21648801]
[1763354167317,0.08404,95412.0,95411.0,0.21648801]
[1763354167518,0.08404,95412.0,95411.0,0.25990675]
[1763354168678,0.12487,95412.0,95411.0,0.25990675]
[1763354168890,0.08404,95412.0,95411.0,0.25990675]
[1763354170362,0.08404,95412.0,95411.0,0.40690675]
[1763354170935,0.01205,95417.0,95412.0,0.04341874]
[1763354171300,0.01205,95417.0,95416.0,0.09980931]
[1763354171710,0.02864,95417.0,95416.0,0.09980931]
[1763354171943,0.02864,95417.0,95416.0,0.19980931]
[1763354172664,0.02864,95417.0,95416.0,0.20080931]
[1763354173081,0.02864,95417.0,95416.0,0.20180931]
[1763354173281,0.02864,95417.0,95416.0,0.21616447]
[1763354174510,0.05288,95417.0,95416.0,0.21616447]
[1763354175556,0.13692,95417.0,95416.0,0.21616447]
[1763354177771,0.05288,95417.0,95416.0,0.21616447]
[1763354178450,0.05288,95417.0,95416.0,0.20180931]
[1763354178622,0.05288,95417.0,95416.0,0.102]
[1763354180140,0.05288,95417.0,95416.0,0.10128]
[1763354180372,0.05288,95417.0,95416.0,0.102]
[1763354185461,0.22096,95417.0,95416.0,0.102]
[1763354185683,0.22096,95417.0,95416.0,0.12219422]
[1763354185905,0.11268,95417.0,95416.0,0.12219422]
[1763354186142,0.43568,95417.0,95416.0,0.12219422]
[1763354186549,0.45949,95417.0,95416.0,0.12219422]
[1763354188409,0.35164,95417.0,95416.0,0.12219422]
[1763354189254,0.37545,95417.0,95416.0,0.12219422]
[1763354191322,0.35164,95417.0,95416.0,0.12219422]
[1763354191556,0.02850385,95422.0,95417.0,0.04341874]
[1763354191798,0.02850385,95422.0,95418.0,0.01375163]
[1763354192011,0.01205,95422.0,95418.0,0.01375163]
[1763354192424,0.01221,95428.0,95418.0,0.11375163]
[1763354192633,0.01221,95427.0,95418.0,0.11375163]
[1763354193064,0.01221,95427.0,95422.0,0.1]
[1763354193288,0.01221,95427.0,95423.0,0.02019422]
[1763354193516,0.03602,95427.0,95423.0,0.02019422]
[1763354193730,0.01221,95427.0,95423.0,0.02019422]
[1763354193935,0.03602,95427.0,95423.0,0.02019422]
[1763354194350,0.02381,95426.0,95423.0,0.02019422]
[1763354194561,0.02381,95426.0,95424.0,0.0063613]
[1763354195520,0.08404,95425.0,95424.0,0.0063613]
[1763354196242,0.08404,95425.0,95424.0,0.0073613]
[1763354196446,0.08404,95425.0,95424.0,0.0063613]
[1763354196866,0.08404,95425.0,95424.0,0.1083613]
[1763354197350,0.01221,95432.0,95425.0,0.04341874]
[1763354197580,0.01221,95441.0,95432.0,0.04341874]
[1763354197800,0.01645078,95447.0,95432.0,0.04341874]
[1763354198013,0.01645078,95447.0,95446.0,0.09980931]
[1763354198248,0.01221,95448.0,95446.0,0.09980931]
[1763354198463,0.03921,95447.0,95446.0,0.09980931]
[1763354198677,0.03921,95447.0,95446.0,0.19980931]
[1763354199292,0.0392541,95447.0,95446.0,0.29980931]
[1763354199488,0.0392541,95447.0,95446.0,0.31800674]
[1763354199716,0.0392541,95447.0,95446.0,0.31700674]
[1763354200040,0.0392541,95447.0,95446.0,0.32000674]
[1763354200883,0.05570479,95447.0,95446.0,0.32000674]
[1763354205697,0.22370479,95447.0,95446.0,0.32000674]
[1763354207924,0.19989479,95447.0,95446.0,0.32000674]
[1763354208331,0.22462479,95447.0,95446.0,0.32000674]
[1763354208837,0.19989479,95447.0,95446.0,0.32000674]
[1763354209243,0.01649479,95447.0,95446.0,0.32000674]
[1763354209568,0.03150479,95447.0,95446.0,0.32000674]
[1763354209767,0.05623479,95447.0,95446.0,0.32000674]
[1763354210217,0.03150479,95447.0,95446.0,0.32000674]
[1763354211563,0.0150541,95447.0,95446.0,0.32000674]
[1763354211889,4.41e-05,95447.0,95446.0,0.32000674]
[1763354212338,0.0397841,95447.0,95446.0,0.32000674]
[1763354213216,0.0150541,95447.0,95446.0,0.32000674]
[1763354213424,4.41e-05,95447.0,95446.0,0.32000674]
[1763354215430,0.0840441,95447.0,95446.0,0.32000674]
[1763354216607,0.0990541,95447.0,95446.0,0.32000674]
[1763354216824,0.0958241,95447.0,95446.0,0.36342548]
[1763354217493,0.0118241,95447.0,95446.0,0.36342548]
[1763354217699,4.41e-05,95447.0,95446.0,0.36342548]
[1763354220808,0.0118241,95447.0,95446.0,0.36342548]
[1763354223308,0.0268341,95447.0,95446.0,0.36342548]
[1763354225577,0.1355641,95447.0,95446.0,0.32000674]
[1763354225786,0.1355641,95447.0,95446.0,0.203]
[1763354225787,0.3745641,95447.0,95446.0,0.203]
[1763354225991,0.3745641,95447.0,95446.0,0.003]
[1763354226395,0.3745641,95447.0,95434.0,0.1]
[1763354226603,0.37452,95446.0,95445.0,0.09680931]
[1763354226864,0.35951,95446.0,95445.0,0.09680931]
[1763354227044,0.37452,95446.0,95445.0,0.09680931]
[1763354227457,0.37452,95446.0,95445.0,0.10649024]
[1763354227644,0.05152,95446.0,95445.0,0.10649024]
[1763354227864,0.05152,95446.0,95445.0,0.09780931]
[1763354229017,0.05152,95446.0,95445.0,0.001]
[1763354231118,0.05152,95446.0,95445.0,0.00046]
[1763354234236,0.08303242,95446.0,95445.0,0.00046]
[1763354235547,0.57403242,95446.0,95445.0,0.00046]
[1763354236037,0.49003242,95446.0,95445.0,0.00046]
[1763354238729,0.50648427,95446.0,95445.0,0.00046]
[1763354239118,0.49003242,95446.0,95445.0,0.00046]
[1763354239977,0.04329242,95446.0,95445.0,0.00046]
[1763354240633,0.04329242,95446.0,95431.0,0.04341874]
[1763354240867,0.05953242,95446.0,95445.0,0.09980931]
[1763354241071,0.05953242,95446.0,95445.0,0.10080931]
[1763354241277,0.04329242,95446.0,95445.0,0.10080931]
[1763354241482,0.0118241,95447.0,95446.0,0.04341874]
[1763354242331,0.0118241,95447.0,95446.0,0.14341874]
[1763354242788,0.0118241,95447.0,95446.0,0.24341874]
[1763354242957,0.0118241,95447.0,95446.0,0.24541874]
[1763354243365,0.0118241,95447.0,95446.0,0.24641874]
[1763354243827,0.0507341,95447.0,95446.0,0.202]
[1763354244201,0.0507341,95447.0,95446.0,0.203]
[1763354245275,0.0507341,95447.0,95446.0,0.103]
[1763354245475,0.5417341,95447.0,95446.0,0.103]
[1763354245679,0.5417341,95447.0,95446.0,0.12328093]
[1763354246087,0.5417341,95447.0,95446.0,0.12228093]
[1763354246291,0.5417341,95447.0,95446.0,0.12028093]
[1763354246476,0.5417341,95447.0,95446.0,0.12128093]
[1763354246630,0.5417341,95447.0,95446.0,0.12328093]
[1763354246825,0.5417341,95447.0,95446.0,0.103]
[1763354246826,0.57324205,95447.0,95446.0,0.103]
[1763354247029,0.40524205,95447.0,95446.0,0.103]
[1763354247346,0.40524205,95447.0,95446.0,0.003]
[1763354248507,0.40524205,95447.0,95446.0,0.002]
[1763354248841,0.323,95446.0,95424.0,0.1]
[1763354249047,0.34567,95446.0,95442.0,0.09980931]
[1763354249364,0.02267,95445.0,95442.0,0.09980931]
[1763354249562,0.02802,95443.0,95442.0,0.09980931]
[1763354249968,0.05069,95443.0,95442.0,0.09980931]
[1763354250383,0.08220315,95443.0,95442.0,0.10080931]
[1763354250589,0.08220315,95443.0,95442.0,0.09980931]
[1763354250988,0.08220315,95443.0,95442.0,0.10979024]
[1763354251629,0.08220315,95443.0,95442.0,0.00998093]
[1763354251810,0.08220315,95443.0,95416.0,0.04341874]
[1763354252004,0.05953315,95443.0,95442.0,0.10080931]
[1763354252414,0.07598515,95443.0,95442.0,0.10080931]
[1763354252752,0.08220315,95443.0,95442.0,0.09980931]
[1763354253518,0.08220315,95443.0,95442.0,0.10080931]
[1763354255538,0.57320315,95443.0,95442.0,0.10080931]
[1763354255739,0.58965526,95443.0,95442.0,0.11089024]
[1763354257309,0.42165526,95443.0,95442.0,0.001]
[1763354258348,0.323,95442.0,95415.0,0.09980931]
[1763354258550,0.01178,95416.0,95415.0,0.19980931]
[1763354258886,0.02802,95416.0,95415.0,0.19980931]
[1763354259091,0.01178,95416.0,95415.0,0.29980931]
[1763354259280,0.04329573,95416.0,95415.0,0.29980931]
[1763354259614,0.04329573,95416.0,95415.0,0.29994216]
[1763354259886,0.04329573,95416.0,95415.0,0.30194216]
[1763354260087,0.03151573,95416.0,95415.0,0.30194216]
[1763354260273,0.323,95429.0,95415.0,0.30294216]
[1763354260616,0.03151378,95423.0,95415.0,0.30294216]
[1763354261233,0.03151378,95423.0,95415.0,0.30194216]
[1763354261438,0.03151378,95423.0,95415.0,0.29994216]
[1763354261631,0.03151378,95423.0,95415.0,0.30094216]
[1763354262051,0.03151378,95423.0,95415.0,0.29994216]
[1763354262250,0.03151378,95423.0,95416.0,0.04341874]
[1763354262467,0.01178,95436.0,95416.0,0.04341874]
[1763354262670,0.01178,95436.0,95435.0,0.09980931]
[1763354263076,0.02802,95436.0,95435.0,0.09980931]
[1763354263434,0.08220315,95436.0,95435.0,0.09980931]
[1763354263606,0.08220315,95436.0,95435.0,0.10979024]
[1763354264036,0.05953315,95436.0,95435.0,0.10979024]
[1763354264306,0.08220315,95436.0,95435.0,0.10979024]
[1763354265146,0.08220315,95436.0,95435.0,0.11079024]
[1763354265360,0.08220315,95436.0,95435.0,0.10979024]
[1763354265634,0.57320315,95436.0,95435.0,0.11179024]
[1763354266035,0.57320315,95436.0,95435.0,0.11279024]
[1763354266974,0.40520315,95436.0,95435.0,0.11279024]
[1763354268066,0.38253315,95436.0,95435.0,0.11279024]
[1763354268407,0.40564315,95436.0,95435.0,0.11279024]
[1763354268805,0.38253315,95436.0,95435.0,0.11279024]
[1763354269433,0.40564315,95436.0,95435.0,0.11279024]
[1763354275559,0.57364315,95436.0,95435.0,0.11279024]
[1763354276443,0.55053315,95436.0,95435.0,0.11279024]
[1763354277424,0.46542532,95436.0,95435.0,0.11279024]
[1763354279282,0.38142532,95436.0,95435.0,0.11279024]
[1763354279628,0.40453532,95436.0,95435.0,0.10280931]
[1763354285637,0.57253532,95436.0,95435.0,0.10280931]
[1763354287605,0.40453532,95436.0,95435.0,0.10280931]
[1763354288157,0.40453532,95436.0,95435.0,0.003]
[1763354288904,0.40453532,95436.0,95435.0,0.002]
[1763354289376,0.40453532,95436.0,95415.0,0.09994216]
[1763354289377,0.323,95435.0,95420.0,0.1]
[1763354289536,0.34611,95435.0,95434.0,0.09980931]
[1763354289744,0.323,95435.0,95434.0,0.09980931]
[1763354289944,0.37073467,95435.0,95434.0,0.09980931]
[1763354290143,0.3871872,95435.0,95434.0,0.09980931]
[1763354290346,0.4102972,95435.0,95434.0,0.09980931]
[1763354290735,0.0872972,95435.0,95434.0,0.10979024]
[1763354290933,0.0872972,95435.0,95434.0,0.11079024]
[1763354295759,0.5782972,95435.0,95434.0,0.11079024]
[1763354296260,0.5782972,95435.0,95434.0,0.01098093]
[1763354296493,0.5782972,95435.0,95434.0,0.001]
[1763354299157,0.4102972,95435.0,95434.0,0.001]
[1763354300732,0.323,95434.0,95415.0,0.09994216]
[1763354300932,0.34659,95434.0,95433.0,0.09980931]
[1763354301246,0.34659,95434.0,95415.0,0.09994216]
[1763354301247,0.323,95434.0,95419.0,0.1]
[1763354301449,0.323,95434.0,95424.0,0.1]
[1763354301450,0.01224,95430.0,95424.0,0.1]
[1763354301649,0.01224,95425.0,95415.0,0.00013285]
[1763354301832,0.02842,95416.0,95415.0,0.00013285]
[1763354302251,0.08043,95416.0,95415.0,0.00013285]
[1763354303136,0.08043,95416.0,95415.0,0.00113285]
[1763354303490,0.08043,95416.0,95415.0,0.00013285]
[1763354303688,0.08043,95416.0,95415.0,0.00113285]
[1763354305459,0.57151,95416.0,95415.0,0.00113285]
[1763354306212,0.46388,95416.0,95415.0,0.00113285]
[1763354306422,0.02842,95416.0,95415.0,0.03453285]
[1763354306623,0.01224,95436.0,95415.0,0.03453285]
[1763354306994,0.03583,95436.0,95435.0,0.09980931]
[1763354307396,0.0835244,95436.0,95435.0,0.09980931]
[1763354308558,0.0599344,95436.0,95435.0,0.09980931]
[1763354308759,0.0835244,95436.0,95435.0,0.09980931]
[1763354308963,0.0835244,95436.0,95435.0,0.10080931]
[1763354309422,0.0599344,95436.0,95435.0,0.11089024]
[1763354309698,0.0835244,95436.0,95435.0,0.11189024]
[1763354310281,0.0599344,95436.0,95435.0,0.11189024]
[1763354310482,0.0835244,95436.0,95435.0,0.11189024]
[1763354312259,0.0835244,95436.0,95435.0,0.10180931]
[1763354313495,0.0599344,95436.0,95435.0,0.10180931]
[1763354313698,0.0835244,95436.0,95435.0,0.10180931]
[1763354315351,0.0835244,95436.0,95435.0,0.002]
[1763354315566,0.5910574,95436.0,95435.0,0.002]
[1763354315766,0.4905644,95436.0,95435.0,0.002]
[1763354316167,0.4905644,95436.0,95435.0,0.001]
[1763354317301,0.323,95435.0,95425.0,0.09980931]
[1763354317495,0.01224,95426.0,95425.0,0.11068224]
[1763354317937,0.0437549,95426.0,95425.0,0.11068224]
[1763354318778,0.0437549,95426.0,95425.0,0.11168224]
[1763354318974,0.06020787,95426.0,95425.0,0.11168224]
[1763354320178,0.06020787,95426.0,95425.0,0.11268224]
[1763354325508,0.22828787,95426.0,95425.0,0.11268224]
[1763354327749,0.21604787,95426.0,95425.0,0.11268224]
[1763354329117,0.21604787,95426.0,95425.0,0.10180931]
[1763354329545,0.04796787,95426.0,95425.0,0.10180931]
[1763354330118,0.0315149,95426.0,95425.0,0.10180931]
[1763354331751,0.0695449,95426.0,95425.0,0.10180931]
[1763354335458,0.2376249,95426.0,95425.0,0.10180931]
[1763354335988,0.2376249,95426.0,95425.0,0.11199024]
[1763354337051,0.1995949,95426.0,95425.0,0.11199024]
[1763354337773,0.0315149,95426.0,95425.0,0.11199024]
[1763354340297,0.0695449,95426.0,95425.0,0.002]
[1763354341368,0.0315149,95426.0,95425.0,0.002]
[1763354343662,0.04796793,95426.0,95425.0,0.002]
[1763354343828,0.0315149,95426.0,95425.0,0.002]
[1763354345551,0.5225949,95426.0,95425.0,0.002]
[1763354346909,0.539048,95426.0,95425.0,0.002]
[1763354347621,0.370968,95426.0,95425.0,0.03504]
[1763354347821,0.3545149,95426.0,95425.0,0.03504]
[1763354348073,0.0315149,95426.0,95425.0,0.27845874]
[1763354348271,0.01183,95463.0,95426.0,0.14322805]
[1763354348555,0.03150719,95452.0,95443.0,0.09980931]
[1763354348763,0.24426051,95453.0,95443.0,0.09980931]
[1763354348975,0.01183,95451.0,95444.0,0.00892]
[1763354349378,0.01183,95451.0,95444.0,0.10892]
[1763354349586,0.01183,95451.0,95445.0,0.02087293]
[1763354350194,0.01193167,95451.0,95445.0,0.12087293]
[1763354350960,0.01193167,95451.0,95445.0,0.12287293]
[1763354351300,0.00010167,95451.0,95445.0,0.12287293]
[1763354352300,0.00010167,95451.0,95445.0,0.12387293]
[1763354352535,0.00010167,95451.0,95446.0,0.01307292]
[1763354353253,0.00010167,95451.0,95446.0,0.11307292]
[1763354353655,0.00010167,95451.0,95446.0,0.11407292]
[1763354354033,0.00010167,95451.0,95446.0,0.11607292]
[1763354355563,0.323,95449.0,95446.0,0.11607292]
[1763354355731,0.323,95449.0,95447.0,0.03871293]
[1763354355973,0.323,95449.0,95448.0,0.01629]
[1763354356143,0.323,95449.0,95448.0,0.03413]
[1763354356560,0.323,95449.0,95448.0,0.13413]
[1763354356768,0.00010167,95451.0,95448.0,0.13413]
[1763354356919,0.00010167,95451.0,95450.0,0.0158]
[1763354357307,0.00010167,95451.0,95450.0,0.03364]
[1763354357510,0.00010167,95451.0,95450.0,0.13364]
[1763354357918,0.00010167,95451.0,95450.0,0.23364]
[1763354359094,0.00010167,95451.0,95450.0,0.23464]
[1763354359298,0.00010167,95451.0,95450.0,0.25551293]
[1763354359504,0.00010167,95451.0,95450.0,0.25751293]
[1763354362818,0.00010167,95451.0,95450.0,0.23967293]
[1763354364577,0.00010167,95451.0,95450.0,0.30093167]
[1763354365443,0.08410167,95451.0,95450.0,0.30093167]
[1763354366797,0.084,95463.0,95454.0,0.04341874]
[1763354367004,0.08404636,95463.0,95462.0,0.16794805]
[1763354367221,0.16804636,95463.0,95462.0,0.16794805]
[1763354367618,0.16804636,95463.0,95462.0,0.26794805]
[1763354368082,0.08404636,95463.0,95462.0,0.28578805]
[1763354368283,0.02252,95481.0,95463.0,0.04341874]
[1763354368431,0.00204636,95479.0,95478.0,0.09980931]
[1763354369015,0.00204636,95479.0,95478.0,0.19980931]
[1763354370430,0.00204636,95479.0,95478.0,0.27686805]
[1763354370846,0.00204636,95479.0,95478.0,0.27786805]
[1763354371048,0.00204636,95479.0,95478.0,0.29194097]
[1763354371691,0.00204636,95479.0,95478.0,0.27410097]
[1763354373128,0.00204636,95479.0,95478.0,0.29194097]
[1763354373732,0.00204636,95479.0,95478.0,0.29094097]
[1763354374095,0.00204636,95479.0,95478.0,0.39094097]
[1763354374403,0.00204636,95479.0,95478.0,0.39294097]
[1763354375023,0.48872102,95510.0,95498.0,0.09980931]
[1763354375024,0.03433,95507.0,95498.0,0.09980931]
[1763354375244,0.01644435,95504.0,95499.0,0.01890093]
[1763354375554,0.323,95502.0,95499.0,0.01890093]
[1763354377342,0.00044246,95507.0,95501.0,0.0158]
[1763354377561,0.00044246,95507.0,95502.0,0.0158]
[1763354377722,0.00044246,95507.0,95503.0,0.010892]
[1763354378384,0.00044246,95507.0,95503.0,0.110892]
[1763354379201,0.02699,95504.0,95503.0,0.05]
[1763354379417,0.02699,95504.0,95479.0,0.1]
[1763354379665,0.323,95488.0,95467.0,0.01133]
[1763354379878,0.323,95476.0,95462.0,0.09980931]
[1763354380075,0.323,95472.0,95464.0,0.1]
[1763354381134,0.323,95472.0,95464.0,0.10004636]
[1763354381359,0.323,95472.0,95464.0,0.10104636]
[1763354381765,0.0315017,95478.0,95464.0,0.10104636]
[1763354381971,0.323,95473.0,95464.0,0.12367636]
[1763354382181,0.323,95473.0,95465.0,0.01967892]
[1763354382527,0.323,95473.0,95464.0,0.00104636]
[1763354382721,0.01952027,95472.0,95464.0,0.00104636]
[1763354382923,0.01952027,95471.0,95429.0,0.01133]
[1763354383126,0.323,95438.0,95433.0,0.09980931]
[1763354384161,0.35451397,95442.0,95433.0,0.09980931]
[1763354385003,0.323,95442.0,95441.0,0.02713]
[1763354385213,0.03150716,95461.0,95441.0,0.04976]
[1763354385422,0.323,95459.0,95457.0,0.09980931]
[1763354385630,0.323,95459.0,95448.0,0.09980931]
[1763354385845,0.323,95457.0,95449.0,0.00998093]
[1763354386058,0.323,95457.0,95449.0,0.02149093]
[1763354386955,0.323,95459.0,95455.0,0.1]
[1763354388010,0.03150716,95461.0,95455.0,0.101]
[1763354388630,0.01645,95460.0,95455.0,0.101]
[1763354388834,0.03150716,95461.0,95455.0,0.101]
[1763354389222,0.323,95469.0,95460.0,0.01577]
[1763354389430,0.323,95469.0,95464.0,0.09980931]
[1763354389640,0.03150477,95465.0,95464.0,0.09980931]
[1763354389845,0.323,95469.0,95464.0,0.09980931]
[1763354390053,0.03150477,95468.0,95464.0,0.09980931]
[1763354391924,0.04795432,95468.0,95464.0,0.09980931]
[1763354392345,0.01644955,95468.0,95467.0,0.01577]
[1763354392551,0.01644955,95468.0,95467.0,0.11577]
[1763354392754,0.01644955,95468.0,95467.0,0.13973]
[1763354392959,0.03150173,95476.0,95467.0,0.13973]
[1763354393163,0.03150173,95476.0,95467.0,0.23973]
[1763354393399,0.03150173,95476.0,95468.0,0.02396]
[1763354393611,0.27745747,95490.0,95475.0,0.02728]
[1763354393791,0.35449932,95489.0,95484.0,0.09980931]
[1763354393989,0.03149932,95489.0,95484.0,0.09980931]
[1763354395551,0.323,95487.0,95484.0,0.09980931]
[1763354395900,0.323,95487.0,95484.0,0.10080931]
[1763354396378,0.33944759,95487.0,95484.0,0.10080931]
[1763354396594,0.33944759,95487.0,95484.0,0.09980931]
[1763354396770,0.01644759,95487.0,95484.0,0.09980931]
[1763354396972,0.01644759,95487.0,95484.0,0.10080931]
[1763354397314,0.01644759,95487.0,95484.0,0.001]
[1763354398636,0.01644759,95487.0,95464.0,0.09980931]
[1763354398844,0.323,95473.0,95472.0,0.1]
[1763354399965,0.03150173,95476.0,95472.0,0.1]
[1763354399966,0.03150173,95476.0,95472.0,0.101]
[1763354400163,0.323,95481.0,95472.0,0.101]
[1763354400550,0.03150173,95480.0,95472.0,0.101]
[1763354401555,0.03150173,95480.0,95472.0,0.1]
[1763354401556,0.02885208,95479.0,95472.0,0.1]
[1763354401770,0.03150173,95480.0,95437.0,0.01151]
[1763354402076,0.03569215,95478.0,95472.0,0.001]
[1763354402278,0.01949359,95477.0,95449.0,0.09980931]
[1763354402597,0.01949359,95477.0,95472.0,0.001]
[1763354402834,0.01949359,95477.0,95450.0,0.00998093]
[1763354403164,0.323,95459.0,95450.0,0.01002729]
[1763354403573,0.323,95459.0,95458.0,0.01577]
[1763354403783,0.03150428,95470.0,95458.0,0.01577]
[1763354403968,0.001,95478.0,95469.0,0.09980931]
[1763354404164,0.001,95478.0,95469.0,0.11557931]
[1763354404370,0.03150276,95477.0,95470.0,0.01151]
[1763354404625,0.03250276,95477.0,95470.0,0.05057493]
[1763354404827,0.27745747,95480.0,95471.0,0.1]
[1763354405054,0.001,95477.0,95471.0,0.1]
[1763354405396,0.168,95476.0,95471.0,0.1]
[1763354405671,0.323,95475.0,95471.0,0.1]
[1763354406059,0.323,95475.0,95471.0,0.12396]
[1763354406412,0.33944746,95475.0,95471.0,0.12496]
[1763354406858,0.74944746,95475.0,95474.0,0.01577]
[1763354408222,0.74944746,95475.0,95474.0,0.03087493]
[1763354408484,0.74944746,95475.0,95474.0,0.05483493]
[1763354408688,0.74944746,95475.0,95474.0,0.05583493]
[1763354408941,0.42644746,95475.0,95474.0,0.09925367]
[1763354409161,0.34880918,95510.0,95503.0,0.09980931]
[1763354409162,0.0002,95510.0,95503.0,0.09980931]
[1763354409395,0.0102,95510.0,95509.0,0.0272]
[1763354409597,0.3402,95510.0,95509.0,0.05116]
[1763354410003,0.3402,95510.0,95509.0,0.15116]
[1763354410595,0.34064249,95510.0,95509.0,0.15116]
[1763354410797,0.34064249,95510.0,95509.0,0.19457874]
[1763354411210,0.34064249,95510.0,95509.0,0.19557874]
[1763354411441,0.34064249,95510.0,95509.0,0.19657874]
[1763354411690,0.22003775,95510.0,95509.0,0.19657874]
[1763354411918,0.22003775,95510.0,95509.0,0.22421755]
[1763354412145,0.22003775,95510.0,95509.0,0.22721755]
[1763354412558,0.18479892,95510.0,95509.0,0.29757874]
[1763354412745,0.16167047,95510.0,95509.0,0.29757874]
[1763354412948,0.38044249,95510.0,95509.0,0.29757874]
[1763354414047,0.01689726,95510.0,95509.0,0.29757874]
[1763354414192,0.01575411,95510.0,95509.0,0.29757874]
[1763354414392,0.0002,95520.0,95511.0,0.04341874]
[1763354414675,0.35213269,95519.0,95518.0,0.05918874]
[1763354414988,0.35213269,95519.0,95518.0,0.08314874]
[1763354415413,0.43609269,95519.0,95518.0,0.18314874]
[1763354415809,0.43609269,95519.0,95518.0,0.28314874]
[1763354416219,0.43609269,95519.0,95518.0,0.28414874]
[1763354416849,0.35213269,95519.0,95518.0,0.28414874]
[1763354417059,0.40995783,95519.0,95518.0,0.18414874]
[1763354417272,0.40354903,95519.0,95518.0,0.18414874]
[1763354417615,0.3478475,95519.0,95518.0,0.18514874]
[1763354417816,0.33561848,95519.0,95518.0,0.21366361]
[1763354418024,0.33561848,95519.0,95518.0,0.28314874]
[1763354418427,0.10447108,95519.0,95518.0,0.28614874]
[1763354418650,0.08396,95528.0,95521.0,0.04341874]
[1763354418856,0.47396,95528.0,95527.0,0.07040874]
[1763354419059,0.55792,95528.0,95527.0,0.07944961]
[1763354419258,0.55792,95528.0,95527.0,0.10218961]
[1763354419573,0.55792,95528.0,95527.0,0.20218961]
[1763354419978,0.55792,95528.0,95527.0,0.30218961]
[1763354420405,0.713,95528.0,95527.0,0.2]
[1763354420816,0.713,95528.0,95527.0,0.203]
[1763354421330,0.713,95528.0,95527.0,0.2]
[1763354421616,0.713,95528.0,95527.0,0.202]
[1763354421841,0.713,95528.0,95527.0,0.2222]
[1763354424414,0.713,95528.0,95527.0,0.23739]
[1763354425460,0.79692,95528.0,95527.0,0.23739]
[1763354425600,0.88084,95528.0,95527.0,0.23739]
[1763354428173,0.88084,95528.0,95527.0,0.26013]
[1763354428652,0.88084,95528.0,95527.0,0.23739]
[1763354428864,0.72951,95528.0,95527.0,0.202]
[1763354430502,0.75228,95528.0,95527.0,0.202]
[1763354430905,0.75228,95528.0,95527.0,0.002]
[1763354431729,0.75228,95528.0,95527.0,0.001]
[1763354432441,0.323,95527.0,95506.0,0.1]
[1763354432657,0.323,95519.0,95507.0,0.02343493]
[1763354432796,0.673,95519.0,95507.0,0.02343493]